[Event "Late-Titled-Tuesday-Blitz-March-12-2024"]
[Site "Chess.com"]
[Date "2024.03.12"]
[Round "7"]
[White "ketster"]
[Black "buenamor1972"]
[Result "0-1"]
[WhiteElo "2551"]
[BlackElo "2392"]
[TimeControl "180+1"]
[EndTime "15:18:46 PDT"]
[Termination "buenamor1972 won by checkmate"]

1. Nf3 {[%clk 0:03:00.9]} 1... Nf6 {[%clk 0:02:57.1]} 2. c4 {[%clk 0:03:00.1]}
2... e6 {[%clk 0:02:56.9]} 3. b3 {[%clk 0:02:58.3]} 3... b6 {[%clk 0:02:55.3]}
4. Bb2 {[%clk 0:02:57.3]} 4... Bb7 {[%clk 0:02:55.8]} 5. g3 {[%clk 0:02:52.1]}
5... Be7 {[%clk 0:02:54.9]} 6. Bg2 {[%clk 0:02:52.5]} 6... c5 {[%clk 0:02:55.3]}
7. O-O {[%clk 0:02:51.4]} 7... O-O {[%clk 0:02:55.8]} 8. d4 {[%clk 0:02:51.4]}
8... cxd4 {[%clk 0:02:55.2]} 9. Qxd4 {[%clk 0:02:51.9]} 9... d6 {[%clk
0:02:55.3]} 10. Nc3 {[%clk 0:02:49.9]} 10... a6 {[%clk 0:02:50.8]} 11. Rfd1
{[%clk 0:02:48.5]} 11... Nbd7 {[%clk 0:02:49.4]} 12. Rac1 {[%clk 0:02:47.7]}
12... Qc7 {[%clk 0:02:49.3]} 13. h3 {[%clk 0:02:20.8]} 13... Rac8 {[%clk
0:02:46.3]} 14. g4 {[%clk 0:02:18.2]} 14... h6 {[%clk 0:02:44.8]} 15. Qf4 {[%clk
0:02:15.6]} 15... Ne5 {[%clk 0:02:29.6]} 16. Nxe5 {[%clk 0:01:42.6]} 16... dxe5
{[%clk 0:02:30.5]} 17. Qg3 {[%clk 0:01:42.8]} 17... Bxg2 {[%clk 0:02:28.5]} 18.
Qxg2 {[%clk 0:01:43.7]} 18... Rfd8 {[%clk 0:02:21.5]} 19. Ne4 {[%clk 0:01:31.8]}
19... Ne8 {[%clk 0:02:20.7]} 20. g5 {[%clk 0:01:25.7]} 20... hxg5 {[%clk
0:02:20.1]} 21. Nxg5 {[%clk 0:01:26.6]} 21... Rxd1+ {[%clk 0:02:01.5]} 22. Rxd1
{[%clk 0:01:26.6]} 22... Rd8 {[%clk 0:02:01.8]} 23. Rxd8 {[%clk 0:01:18.1]}
23... Qxd8 {[%clk 0:02:01.6]} 24. Nf3 {[%clk 0:01:13.8]} 24... Qd1+ {[%clk
0:01:58.9]} 25. Qf1 {[%clk 0:01:13.4]} 25... Qxf1+ {[%clk 0:01:57.8]} 26. Kxf1
{[%clk 0:01:14.3]} 26... f6 {[%clk 0:01:57.8]} 27. e3 {[%clk 0:01:09]} 27... Kf7
{[%clk 0:01:52]} 28. Ke2 {[%clk 0:01:08.4]} 28... Nc7 {[%clk 0:01:50.2]} 29. a3
{[%clk 0:01:07.7]} 29... b5 {[%clk 0:01:48.3]} 30. Nd2 {[%clk 0:01:05.9]} 30...
bxc4 {[%clk 0:01:38.1]} 31. bxc4 {[%clk 0:01:06.8]} 31... Ke8 {[%clk 0:01:22]}
32. Nb3 {[%clk 0:00:58.3]} 32... Kd7 {[%clk 0:01:18.9]} 33. Kd3 {[%clk
0:00:55.6]} 33... Kc6 {[%clk 0:01:16.9]} 34. a4 {[%clk 0:00:55.3]} 34... Bb4
{[%clk 0:01:12.4]} 35. Bc3 {[%clk 0:00:52.1]} 35... Bc5 {[%clk 0:01:06.9]} 36.
Ba5 {[%clk 0:00:46.7]} 36... Ne8 {[%clk 0:01:04.7]} 37. Kc3 {[%clk 0:00:44.7]}
37... f5 {[%clk 0:00:49.5]} 38. Bb4 {[%clk 0:00:35.4]} 38... Bb6 {[%clk
0:00:44.5]} 39. c5 {[%clk 0:00:32.3]} 39... Bc7 {[%clk 0:00:44.6]} 40. Kc4
{[%clk 0:00:32.6]} 40... Nf6 {[%clk 0:00:43.1]} 41. f3 {[%clk 0:00:26]} 41...
Nd5 {[%clk 0:00:42.1]} 42. Bd2 {[%clk 0:00:26.2]} 42... Nf6 {[%clk 0:00:30.3]}
43. Bc1 {[%clk 0:00:21.4]} 43... Nd5 {[%clk 0:00:29.9]} 44. Bd2 {[%clk
0:00:19.4]} 44... Nf6 {[%clk 0:00:30]} 45. Nc1 {[%clk 0:00:19]} 45... Nd7 {[%clk
0:00:29.4]} 46. Nd3 {[%clk 0:00:18.9]} 46... a5 {[%clk 0:00:25.8]} 47. e4 {[%clk
0:00:12.9]} 47... g6 {[%clk 0:00:25.1]} 48. Bg5 {[%clk 0:00:09.7]} 48... Bb8
{[%clk 0:00:22]} 49. Be7 {[%clk 0:00:09.3]} 49... Bc7 {[%clk 0:00:20.6]} 50. Nc1
{[%clk 0:00:07.2]} 50... Bb8 {[%clk 0:00:19.3]} 51. Nb3 {[%clk 0:00:07.2]} 51...
Bc7 {[%clk 0:00:19.8]} 52. h4 {[%clk 0:00:05.6]} 52... Nb8 {[%clk 0:00:19.7]}
53. Bf8 {[%clk 0:00:03.4]} 53... Na6 {[%clk 0:00:19.8]} 54. Be7 {[%clk
0:00:03.3]} 54... Nb4 {[%clk 0:00:20.1]} 55. Bf8 {[%clk 0:00:01.6]} 55... Nc2
{[%clk 0:00:19.9]} 56. Be7 {[%clk 0:00:02]} 56... Ne3+ {[%clk 0:00:18.6]} 57.
Kd3 {[%clk 0:00:02.1]} 57... Ng2 {[%clk 0:00:18.7]} 58. Kc4 {[%clk 0:00:01.4]}
58... Ne1 {[%clk 0:00:18.2]} 59. Bf6 {[%clk 0:00:02]} 59... Nxf3 {[%clk
0:00:17.5]} 60. exf5 {[%clk 0:00:02.5]} 60... exf5 {[%clk 0:00:17.3]} 61. Be7
{[%clk 0:00:02.6]} 61... f4 {[%clk 0:00:14.3]} 62. Bf6 {[%clk 0:00:01.8]} 62...
Bb8 {[%clk 0:00:13.2]} 63. Nc1 {[%clk 0:00:01.6]} 63... Bc7 {[%clk 0:00:12.7]}
64. Nd3 {[%clk 0:00:02]} 64... e4 {[%clk 0:00:11.5]} 65. Nc1 {[%clk 0:00:01.4]}
65... Be5 {[%clk 0:00:09.6]} 66. Nb3 {[%clk 0:00:01.8]} 66... Bxf6 {[%clk
0:00:09.1]} 67. Nxa5+ {[%clk 0:00:02.7]} 67... Kc7 {[%clk 0:00:09.4]} 68. Nb3
{[%clk 0:00:03.6]} 68... e3 {[%clk 0:00:09.4]} 69. Kd3 {[%clk 0:00:04.1]} 69...
Ne5+ {[%clk 0:00:08.8]} 70. Ke2 {[%clk 0:00:04.5]} 70... Nd7 {[%clk 0:00:08.2]}
71. Kf3 {[%clk 0:00:04.7]} 71... Be5 {[%clk 0:00:08]} 72. Nc1 {[%clk 0:00:04.4]}
72... Nxc5 {[%clk 0:00:07.8]} 73. a5 {[%clk 0:00:04.7]} 73... Bb2 {[%clk
0:00:07.7]} 74. Ne2 {[%clk 0:00:04.5]} 74... Be5 {[%clk 0:00:06.2]} 75. Nc1
{[%clk 0:00:04.5]} 75... Kb7 {[%clk 0:00:06]} 76. Ne2 {[%clk 0:00:04.2]} 76...
Ka6 {[%clk 0:00:06.2]} 77. Ng1 {[%clk 0:00:05.1]} 77... Kxa5 {[%clk 0:00:06.3]}
78. Nh3 {[%clk 0:00:06]} 78... Kb4 {[%clk 0:00:06.4]} 79. Ng5 {[%clk 0:00:06.5]}
79... Kc3 {[%clk 0:00:06.2]} 80. Nf7 {[%clk 0:00:07.4]} 80... Bb8 {[%clk
0:00:06.3]} 81. Nh8 {[%clk 0:00:06.1]} 81... Kd2 {[%clk 0:00:06.3]} 82. Nxg6
{[%clk 0:00:07]} 82... e2 {[%clk 0:00:06.6]} 83. h5 {[%clk 0:00:07.9]} 83...
e1=Q {[%clk 0:00:06.7]} 84. h6 {[%clk 0:00:08.8]} 84... Qe2# {[%clk 0:00:07]}
0-1

[Event "Late-Titled-Tuesday-Blitz-March-12-2024"]
[Site "Chess.com"]
[Date "2024.03.12"]
[Round "7"]
[White "Vesapesa"]
[Black "Inepton_Fermion"]
[Result "1/2-1/2"]
[WhiteElo "2208"]
[BlackElo "2454"]
[TimeControl "180+1"]
[EndTime "15:18:49 PDT"]
[Termination "Game drawn by repetition"]

1. e4 {[%clk 0:03:00.9]} 1... c5 {[%clk 0:02:42.5]} 2. Nf3 {[%clk 0:02:59.3]}
2... e6 {[%clk 0:02:41.4]} 3. c4 {[%clk 0:02:58.6]} 3... Nc6 {[%clk 0:02:39.9]}
4. Nc3 {[%clk 0:02:57.5]} 4... d6 {[%clk 0:02:32.9]} 5. d4 {[%clk 0:02:56.4]}
5... cxd4 {[%clk 0:02:33.8]} 6. Nxd4 {[%clk 0:02:56.6]} 6... Nf6 {[%clk
0:02:34.3]} 7. Be2 {[%clk 0:02:55.1]} 7... Be7 {[%clk 0:02:33.6]} 8. O-O {[%clk
0:02:54.4]} 8... O-O {[%clk 0:02:34.2]} 9. Be3 {[%clk 0:02:51.4]} 9... a6 {[%clk
0:02:33.7]} 10. Rc1 {[%clk 0:02:49.1]} 10... Bd7 {[%clk 0:02:33.6]} 11. f4
{[%clk 0:02:47.8]} 11... Nxd4 {[%clk 0:02:24.2]} 12. Bxd4 {[%clk 0:02:48.7]}
12... Bc6 {[%clk 0:02:24.7]} 13. Bf3 {[%clk 0:02:47.2]} 13... Qa5 {[%clk
0:02:12.6]} 14. Qe2 {[%clk 0:02:30.2]} 14... Nd7 {[%clk 0:01:57.8]} 15. f5
{[%clk 0:02:20.2]} 15... Bf6 {[%clk 0:01:52.1]} 16. Bxf6 {[%clk 0:02:13.1]}
16... Nxf6 {[%clk 0:01:51.9]} 17. fxe6 {[%clk 0:01:56.9]} 17... fxe6 {[%clk
0:01:52.8]} 18. Bg4 {[%clk 0:01:54.6]} 18... Qe5 {[%clk 0:01:47.6]} 19. Rce1
{[%clk 0:01:40.8]} 19... Rae8 {[%clk 0:01:40]} 20. Bf3 {[%clk 0:01:38.2]} 20...
b5 {[%clk 0:01:36.3]} 21. cxb5 {[%clk 0:01:30.1]} 21... axb5 {[%clk 0:01:37.2]}
22. Qe3 {[%clk 0:01:23.4]} 22... b4 {[%clk 0:01:34.8]} 23. Nd1 {[%clk
0:01:14.6]} 23... Ra8 {[%clk 0:01:28.1]} 24. a3 {[%clk 0:00:58.9]} 24... bxa3
{[%clk 0:01:21.5]} 25. bxa3 {[%clk 0:00:59.8]} 25... Ra4 {[%clk 0:01:14]} 26.
Nf2 {[%clk 0:00:45.7]} 26... Bb5 {[%clk 0:00:55.4]} 27. Be2 {[%clk 0:00:32.9]}
27... Rfa8 {[%clk 0:00:36.8]} 28. Bxb5 {[%clk 0:00:31.4]} 28... Qxb5 {[%clk
0:00:37.7]} 29. Ra1 {[%clk 0:00:31.1]} 29... Qe5 {[%clk 0:00:32.7]} 30. Rfe1
{[%clk 0:00:29.7]} 30... h6 {[%clk 0:00:30.9]} 31. h3 {[%clk 0:00:21.9]} 31...
Kh7 {[%clk 0:00:30.9]} 32. Qd3 {[%clk 0:00:18.5]} 32... Qc5 {[%clk 0:00:22.9]}
33. Re3 {[%clk 0:00:10.5]} 33... Qe5 {[%clk 0:00:12.9]} 34. Ree1 {[%clk
0:00:09.7]} 34... Kh8 {[%clk 0:00:13.3]} 35. Kh1 {[%clk 0:00:04.5]} 35... Qb2
{[%clk 0:00:08.6]} 36. Qe2 {[%clk 0:00:03]} 36... Qxe2 {[%clk 0:00:06.4]} 37.
Rxe2 {[%clk 0:00:03.9]} 37... Rxa3 {[%clk 0:00:07]} 38. Rxa3 {[%clk 0:00:03.9]}
38... Rxa3 {[%clk 0:00:07.9]} 39. Rd2 {[%clk 0:00:04.1]} 39... Ra6 {[%clk
0:00:05.8]} 40. Kh2 {[%clk 0:00:03]} 40... Kg8 {[%clk 0:00:05.8]} 41. Kg3 {[%clk
0:00:03.3]} 41... Kf7 {[%clk 0:00:06.3]} 42. Kf4 {[%clk 0:00:03.5]} 42... e5+
{[%clk 0:00:05.4]} 43. Ke3 {[%clk 0:00:03.1]} 43... Ra3+ {[%clk 0:00:03.6]} 44.
Nd3 {[%clk 0:00:02]} 44... Ke6 {[%clk 0:00:02.8]} 45. Rc2 {[%clk 0:00:01.8]}
45... d5 {[%clk 0:00:02.3]} 46. Rc6+ {[%clk 0:00:02.5]} 46... Kd7 {[%clk
0:00:02.4]} 47. exd5 {[%clk 0:00:03]} 47... Nxd5+ {[%clk 0:00:02.2]} 48. Ke4
{[%clk 0:00:02.1]} 48... Kxc6 {[%clk 0:00:02.7]} 49. Nxe5+ {[%clk 0:00:02.1]}
49... Kd6 {[%clk 0:00:02.8]} 50. Nc4+ {[%clk 0:00:02]} 50... Ke6 {[%clk
0:00:03.1]} 51. Nxa3 {[%clk 0:00:02.9]} 51... Nf6+ {[%clk 0:00:02.7]} 52. Kf3
{[%clk 0:00:02.6]} 52... Kf5 {[%clk 0:00:02.8]} 53. g4+ {[%clk 0:00:02.9]} 53...
Kg5 {[%clk 0:00:03]} 54. Nc2 {[%clk 0:00:03.6]} 54... Kh4 {[%clk 0:00:02.9]} 55.
Kg2 {[%clk 0:00:03.3]} 55... Ne4 {[%clk 0:00:01.8]} 56. Ne1 {[%clk 0:00:03.6]}
56... Kg5 {[%clk 0:00:01.5]} 57. Nf3+ {[%clk 0:00:04.1]} 57... Kf4 {[%clk
0:00:02]} 58. Nh4 {[%clk 0:00:04.4]} 58... Ke5 {[%clk 0:00:01.8]} 59. Nf5 {[%clk
0:00:04.5]} 59... Kf6 {[%clk 0:00:02]} 60. Ne3 {[%clk 0:00:04.1]} 60... Ng5
{[%clk 0:00:02.5]} 61. h4 {[%clk 0:00:04]} 61... Ne6 {[%clk 0:00:03]} 62. Kf3
{[%clk 0:00:04.1]} 62... Kf7 {[%clk 0:00:03.5]} 63. Nf5 {[%clk 0:00:04.2]} 63...
Nf8 {[%clk 0:00:04.1]} 64. Nd6+ {[%clk 0:00:04.3]} 64... Kg6 {[%clk 0:00:04.5]}
65. Nf5 {[%clk 0:00:04.6]} 65... Nd7 {[%clk 0:00:04.8]} 66. Ke4 {[%clk
0:00:04.6]} 66... Nf6+ {[%clk 0:00:05.1]} 67. Kf4 {[%clk 0:00:05]} 67... Nd5+
{[%clk 0:00:04.9]} 68. Ke4 {[%clk 0:00:05.2]} 68... Nf6+ {[%clk 0:00:04.7]} 69.
Kf4 {[%clk 0:00:05.6]} 69... Nh7 {[%clk 0:00:02.2]} 70. Ne7+ {[%clk 0:00:05.4]}
70... Kf6 {[%clk 0:00:02.5]} 71. Nd5+ {[%clk 0:00:05.3]} 71... Kf7 {[%clk
0:00:02.3]} 72. Ne3 {[%clk 0:00:05.1]} 72... Nf8 {[%clk 0:00:02.9]} 73. Nf5
{[%clk 0:00:05.2]} 73... Ng6+ {[%clk 0:00:03.1]} 74. Kg3 {[%clk 0:00:04.4]}
74... Ne5 {[%clk 0:00:03.8]} 75. Kf4 {[%clk 0:00:04.5]} 75... Nd7 {[%clk
0:00:04]} 76. Nd4 {[%clk 0:00:04.3]} 76... Nf6 {[%clk 0:00:04.3]} 77. Nf3 {[%clk
0:00:04.1]} 77... Nh7 {[%clk 0:00:04.4]} 78. g5 {[%clk 0:00:04.3]} 78... h5
{[%clk 0:00:04.5]} 79. Ne5+ {[%clk 0:00:03.9]} 79... Ke6 {[%clk 0:00:04.3]} 80.
Ng6 {[%clk 0:00:03.5]} 80... Kf7 {[%clk 0:00:04.5]} 81. Ne5+ {[%clk 0:00:03.6]}
81... Ke6 {[%clk 0:00:03.9]} 82. Nf3 {[%clk 0:00:03.6]} 82... Nf8 {[%clk
0:00:03.1]} 83. Nd4+ {[%clk 0:00:03.7]} 83... Kf7 {[%clk 0:00:02.9]} 84. Nf5
{[%clk 0:00:03.6]} 84... Ng6+ {[%clk 0:00:02.8]} 85. Kg3 {[%clk 0:00:03.8]}
85... Ne5 {[%clk 0:00:03]} 86. Kf4 {[%clk 0:00:03.7]} 86... Ng6+ {[%clk
0:00:03.2]} 87. Ke4 {[%clk 0:00:02.9]} 87... Nf8 {[%clk 0:00:03]} 88. Kf4 {[%clk
0:00:02.7]} 88... Ng6+ {[%clk 0:00:03.3]} 1/2-1/2

[Event "Late-Titled-Tuesday-Blitz-March-12-2024"]
[Site "Chess.com"]
[Date "2024.03.12"]
[Round "7"]
[White "vi_pranav"]
[Black "Zohid6"]
[Result "1-0"]
[WhiteElo "3044"]
[BlackElo "2891"]
[TimeControl "180+1"]
[EndTime "15:19:10 PDT"]
[Termination "vi_pranav won by resignation"]

1. e4 {[%clk 0:03:00.9]} 1... e5 {[%clk 0:03:00]} 2. Nc3 {[%clk 0:02:59.9]} 2...
Nf6 {[%clk 0:02:58.7]} 3. Bc4 {[%clk 0:02:59.8]} 3... Nxe4 {[%clk 0:02:56.9]} 4.
Qh5 {[%clk 0:02:59.8]} 4... Nd6 {[%clk 0:02:52.6]} 5. Qxe5+ {[%clk 0:03:00.1]}
5... Qe7 {[%clk 0:02:52.2]} 6. Qxe7+ {[%clk 0:03:00.4]} 6... Bxe7 {[%clk
0:02:52.1]} 7. Be2 {[%clk 0:03:01.3]} 7... Nf5 {[%clk 0:02:48.7]} 8. Nf3 {[%clk
0:03:01.4]} 8... Nc6 {[%clk 0:02:44.7]} 9. Nd5 {[%clk 0:02:35.5]} 9... Bd8
{[%clk 0:02:44.1]} 10. c3 {[%clk 0:02:32.7]} 10... Nfe7 {[%clk 0:02:37.9]} 11.
Nf4 {[%clk 0:02:27.5]} 11... O-O {[%clk 0:02:36.1]} 12. d4 {[%clk 0:02:24.4]}
12... d6 {[%clk 0:02:27.7]} 13. O-O {[%clk 0:02:15.1]} 13... Ng6 {[%clk
0:02:23.5]} 14. h3 {[%clk 0:02:08.7]} 14... Re8 {[%clk 0:02:22.6]} 15. Bd3
{[%clk 0:02:07.5]} 15... Bd7 {[%clk 0:02:14.2]} 16. Bd2 {[%clk 0:02:04.9]} 16...
Nce7 {[%clk 0:01:59.5]} 17. Rfe1 {[%clk 0:02:01.9]} 17... c6 {[%clk 0:01:58]}
18. Nh5 {[%clk 0:01:54.6]} 18... Bc7 {[%clk 0:01:53.5]} 19. a4 {[%clk
0:01:46.9]} 19... a5 {[%clk 0:01:45.1]} 20. Kf1 {[%clk 0:01:40.1]} 20... h6
{[%clk 0:01:34.3]} 21. Re2 {[%clk 0:01:18.1]} 21... Bf5 {[%clk 0:01:28.6]} 22.
Bxf5 {[%clk 0:01:15.2]} 22... Nxf5 {[%clk 0:01:29.5]} 23. g4 {[%clk 0:01:02.4]}
23... Nfh4 {[%clk 0:01:25.5]} 24. Nxh4 {[%clk 0:00:59.1]} 24... Nxh4 {[%clk
0:01:26.4]} 25. Bf4 {[%clk 0:00:59.3]} 25... Rxe2 {[%clk 0:01:21.5]} 26. Kxe2
{[%clk 0:01:00.2]} 26... Re8+ {[%clk 0:01:21.8]} 27. Kd3 {[%clk 0:00:59.8]}
27... Bb8 {[%clk 0:01:03.5]} 28. c4 {[%clk 0:00:44.6]} 28... Nf3 {[%clk
0:00:56.6]} 29. Bxh6 {[%clk 0:00:33.8]} 29... gxh6 {[%clk 0:00:37.7]} 30. Nf6+
{[%clk 0:00:32.5]} 30... Kf8 {[%clk 0:00:38.4]} 31. Nxe8 {[%clk 0:00:33.4]}
31... Kxe8 {[%clk 0:00:39.3]} 32. Ke3 {[%clk 0:00:32.2]} 32... Nh4 {[%clk
0:00:37.2]} 33. Ra3 {[%clk 0:00:28.9]} 33... Kd7 {[%clk 0:00:30.4]} 34. Rb3
{[%clk 0:00:28]} 34... Kc8 {[%clk 0:00:30.7]} 35. Ke4 {[%clk 0:00:26.5]} 35...
Bc7 {[%clk 0:00:27.9]} 36. f4 {[%clk 0:00:25.4]} 36... Ng6 {[%clk 0:00:27.5]}
37. f5 {[%clk 0:00:16.6]} 37... Nf8 {[%clk 0:00:26.9]} 38. h4 {[%clk 0:00:15.3]}
38... Nh7 {[%clk 0:00:26.7]} 39. Kf3 {[%clk 0:00:09]} 39... Bd8 {[%clk
0:00:26.6]} 40. Kg3 {[%clk 0:00:08.6]} 40... Bf6 {[%clk 0:00:26.9]} 41. Rd3
{[%clk 0:00:08.8]} 41... Nf8 {[%clk 0:00:26.5]} 42. b3 {[%clk 0:00:06.8]} 42...
Kd7 {[%clk 0:00:26.2]} 43. Rd1 {[%clk 0:00:05.3]} 43... Nh7 {[%clk 0:00:25.8]}
44. d5 {[%clk 0:00:04]} 44... c5 {[%clk 0:00:25.1]} 45. Rh1 {[%clk 0:00:04.1]}
45... Be5+ {[%clk 0:00:25]} 46. Kf3 {[%clk 0:00:04.7]} 46... Bf6 {[%clk
0:00:23.8]} 47. Kg3 {[%clk 0:00:03.7]} 47... Ke7 {[%clk 0:00:23.3]} 48. Re1+
{[%clk 0:00:03.5]} 48... Kf8 {[%clk 0:00:23.7]} 49. Re2 {[%clk 0:00:02.9]} 49...
Be5+ {[%clk 0:00:21.6]} 50. Kf3 {[%clk 0:00:02.9]} 50... Kg7 {[%clk 0:00:21.1]}
51. Re1 {[%clk 0:00:03.1]} 51... f6 {[%clk 0:00:20.5]} 52. Rg1 {[%clk
0:00:03.3]} 52... Nf8 {[%clk 0:00:19.9]} 53. g5 {[%clk 0:00:03.5]} 53... hxg5
{[%clk 0:00:19.8]} 54. hxg5 {[%clk 0:00:04.4]} 54... fxg5 {[%clk 0:00:18.5]} 55.
Rxg5+ {[%clk 0:00:05.3]} 55... Kf6 {[%clk 0:00:19]} 56. Rh5 {[%clk 0:00:05.7]}
56... Kg7 {[%clk 0:00:18.7]} 57. Rg5+ {[%clk 0:00:05.7]} 57... Kf6 {[%clk
0:00:18.9]} 58. Kg4 {[%clk 0:00:04.4]} 58... Kf7 {[%clk 0:00:18.7]} 59. Rh5
{[%clk 0:00:03.7]} 59... Bf6 {[%clk 0:00:19.2]} 60. Rh1 {[%clk 0:00:03.5]} 60...
Nd7 {[%clk 0:00:19.1]} 61. Rh7+ {[%clk 0:00:03.4]} 61... Bg7 {[%clk 0:00:19.5]}
62. Rh1 {[%clk 0:00:03.7]} 62... Nf6+ {[%clk 0:00:19.9]} 63. Kg5 {[%clk
0:00:03.8]} 63... Ne4+ {[%clk 0:00:20.4]} 64. Kf4 {[%clk 0:00:04.2]} 64... Nf6
{[%clk 0:00:17]} 65. Kg5 {[%clk 0:00:04.2]} 65... Ne4+ {[%clk 0:00:16.1]} 66.
Kf4 {[%clk 0:00:04.5]} 66... Nf6 {[%clk 0:00:14.6]} 67. Re1 {[%clk 0:00:04.9]}
67... Nd7 {[%clk 0:00:11.4]} 68. Re6 {[%clk 0:00:04.3]} 68... Be5+ {[%clk
0:00:11.8]} 69. Kg5 {[%clk 0:00:04.6]} 69... Nf8 {[%clk 0:00:11.3]} 70. Rh6
{[%clk 0:00:03.5]} 70... Bg7 {[%clk 0:00:11.3]} 71. Rxd6 {[%clk 0:00:03.4]}
71... Be5 {[%clk 0:00:07.5]} 72. Rb6 {[%clk 0:00:03.7]} 72... Nd7 {[%clk
0:00:07.2]} 73. Rxb7 {[%clk 0:00:03.9]} 73... Ke7 {[%clk 0:00:07.9]} 74. Kg6
{[%clk 0:00:03.9]} 74... Kd6 {[%clk 0:00:07.7]} 75. Kf7 {[%clk 0:00:03.8]} 75...
Bc3 {[%clk 0:00:06]} 76. Ra7 {[%clk 0:00:02.9]} 76... Ne5+ {[%clk 0:00:04.5]}
77. Ke8 {[%clk 0:00:03.1]} 77... Ng4 {[%clk 0:00:03.8]} 78. Ra6+ {[%clk
0:00:03.7]} 78... Ke5 {[%clk 0:00:03.9]} 79. d6 {[%clk 0:00:04.2]} 79... Nf6+
{[%clk 0:00:02]} 80. Kd8 {[%clk 0:00:04.6]} 80... Kxf5 {[%clk 0:00:01.7]} 81. d7
{[%clk 0:00:05.2]} 81... Nxd7 {[%clk 0:00:02]} 82. Kxd7 {[%clk 0:00:05.9]} 82...
Ke4 {[%clk 0:00:02.7]} 83. Kc6 {[%clk 0:00:06.3]} 83... Bb4 {[%clk 0:00:03.2]}
84. Kb5 {[%clk 0:00:04]} 84... Kd3 {[%clk 0:00:03.7]} 85. Rxa5 {[%clk
0:00:04.9]} 85... Kc3 {[%clk 0:00:03.7]} 86. Ra6 {[%clk 0:00:05.1]} 86... Kxb3
{[%clk 0:00:04.4]} 87. Rc6 {[%clk 0:00:05.4]} 1-0